bitfinex/quotes_BTCUSD_20250324
["timestamp","ask_amount","ask_price","bid_price","bid_amount"]
[1742858209895,0.0103396,87366.0,87365.0,0.48351857]
[1742858211507,0.0053396,87366.0,87365.0,0.48351857]
[1742858211808,0.0023396,87366.0,87365.0,0.48351857]
[1742858212341,0.0033396,87366.0,87365.0,0.48351857]
[1742858212776,0.0033396,87366.0,87365.0,0.49501511]
[1742858212974,0.0023396,87366.0,87365.0,0.49501511]
[1742858213358,0.0033396,87366.0,87365.0,0.49501511]
[1742858213879,0.0013396,87366.0,87365.0,0.49501511]
[1742858214253,0.0023396,87366.0,87365.0,0.49501511]
[1742858214469,0.0023396,87366.0,87365.0,0.55395511]
[1742858214657,0.0023396,87366.0,87365.0,0.81590026]
[1742858215480,0.0013396,87366.0,87365.0,0.81590026]
[1742858217009,0.0003396,87366.0,87365.0,0.81590026]
[1742858222713,0.0003396,87366.0,87365.0,1.11590026]
[1742858222917,0.0003396,87366.0,87365.0,1.13740026]
[1742858222918,6e-07,87366.0,87365.0,1.13740026]
[1742858223236,6e-07,87366.0,87365.0,1.16240026]
[1742858224030,6e-07,87366.0,87365.0,1.16340026]
[1742858224224,6e-07,87366.0,87365.0,1.00488026]
[1742858224427,6e-07,87366.0,87365.0,1.13256026]
[1742858224789,0.0010006,87366.0,87365.0,1.13556026]
[1742858225190,0.0010006,87366.0,87365.0,1.13456026]
[1742858225392,0.0020006,87366.0,87365.0,1.13556026]
[1742858225792,0.0010006,87366.0,87365.0,1.13456026]
[1742858226015,0.0010006,87366.0,87365.0,1.13556026]
[1742858226329,6e-07,87366.0,87365.0,1.13356026]
[1742858226690,0.0010006,87366.0,87365.0,1.13456026]
[1742858226892,0.0010006,87366.0,87365.0,1.67908026]
[1742858228519,0.0010006,87366.0,87365.0,1.68408026]
[1742858232520,0.0010006,87366.0,87365.0,1.30336026]
[1742858233734,6e-07,87366.0,87365.0,1.30236026]
[1742858233938,6e-07,87366.0,87365.0,1.30336026]
[1742858234922,6e-07,87366.0,87365.0,1.30236026]
[1742858236420,6e-07,87366.0,87365.0,1.17380026]
[1742858236625,6e-07,87366.0,87365.0,0.92193372]
[1742858236832,6e-07,87366.0,87365.0,1.15085772]
[1742858237042,0.0828006,87366.0,87365.0,1.27941772]
[1742858237492,0.0828006,87366.0,87365.0,1.27841772]
[1742858238895,0.1303006,87366.0,87365.0,0.78754857]
[1742858239276,0.3706686,87366.0,87365.0,0.78754857]
[1742858240365,0.3706686,87366.0,87365.0,0.78746857]
[1742858240927,0.3706686,87366.0,87365.0,0.67317093]
[1742858241999,0.1303006,87366.0,87365.0,1.01635257]
[1742858242617,6e-07,87366.0,87365.0,1.02779857]
[1742858243873,6e-07,87366.0,87365.0,1.28974372]
[1742858247747,6e-07,87366.0,87365.0,1.27829772]
[1742858247879,6e-07,87366.0,87365.0,1.28974372]
[1742858250774,6e-07,87366.0,87365.0,1.34884372]
[1742858251357,6e-07,87366.0,87365.0,1.37138881]
[1742858252287,6e-07,87366.0,87365.0,1.37238881]
[1742858253053,6e-07,87366.0,87365.0,1.31328881]
[1742858255416,6e-07,87366.0,87365.0,1.16230372]
[1742858255640,6e-07,87366.0,87365.0,1.29050372]
[1742858255845,6e-07,87366.0,87365.0,1.27905772]
[1742858256438,6e-07,87366.0,87365.0,1.29050372]
[1742858256639,6e-07,87366.0,87365.0,0.92193372]
[1742858256871,6e-07,87366.0,87365.0,0.78826857]
[1742858256997,0.0787006,87366.0,87365.0,0.78826857]
[1742858257198,0.3076226,87366.0,87365.0,0.78826857]
[1742858258020,0.0787006,87366.0,87365.0,0.78826857]
[1742858258233,0.0787006,87366.0,87365.0,1.01619257]
[1742858258535,0.0787006,87366.0,87365.0,0.78726857]
[1742858259597,0.0787006,87366.0,87365.0,1.01619257]
[1742858259799,0.0787006,87366.0,87365.0,1.02763857]
[1742858260007,0.0787006,87366.0,87365.0,1.01619257]
[1742858262437,0.0787006,87366.0,87365.0,0.78726857]
[1742858262759,0.3076226,87366.0,87365.0,0.78726857]
[1742858262919,0.3190686,87366.0,87365.0,0.78726857]
[1742858263487,0.42874786,87366.0,87365.0,0.78710857]
[1742858263742,0.3190686,87366.0,87365.0,0.78710857]
[1742858264144,0.3190686,87366.0,87365.0,0.54473093]
[1742858267010,0.3642686,87366.0,87365.0,0.54473093]
[1742858268316,0.3652686,87366.0,87365.0,0.54473093]
[1742858268610,0.3662686,87366.0,87365.0,0.54473093]
[1742858270149,0.3662686,87366.0,87365.0,0.00021093]
[1742858276045,0.42519111,87366.0,87365.0,0.00021093]
[1742858282064,0.44767689,87366.0,87365.0,0.00021093]
[1742858282424,0.3642686,87366.0,87365.0,0.00021093]
[1742858282622,0.3672686,87366.0,87365.0,0.00021093]
[1742858282827,0.3712686,87366.0,87365.0,0.00021093]
[1742858283070,0.3682686,87366.0,87365.0,0.00021093]
[1742858283270,0.3642686,87366.0,87365.0,0.00021093]
[1742858284565,0.3672686,87366.0,87365.0,0.00021093]
[1742858284761,0.3642686,87366.0,87365.0,0.00021093]
[1742858285119,0.3672686,87366.0,87365.0,0.00021093]
[1742858285316,0.3712686,87366.0,87365.0,0.00021093]
[1742858285890,0.3672686,87366.0,87365.0,0.00021093]
[1742858287248,0.3702686,87366.0,87365.0,0.00021093]
[1742858295915,0.2463686,87366.0,87365.0,0.00021093]
[1742858296114,0.3221686,87366.0,87365.0,0.00021093]
[1742858300108,0.3191686,87366.0,87365.0,0.00021093]
[1742858300298,0.3221686,87366.0,87365.0,0.00021093]
[1742858300523,0.3191686,87366.0,87365.0,0.00021093]
[1742858300952,0.3211686,87366.0,87365.0,0.00021093]
[1742858302463,0.3211686,87366.0,87365.0,0.12797093]
[1742858303879,0.0050006,87366.0,87365.0,0.35689493]
[1742858304096,0.0050006,87366.0,87365.0,0.47115257]
[1742858304303,0.0050006,87366.0,87365.0,0.48259857]
[1742858305221,0.0030006,87366.0,87365.0,0.48259857]
[1742858305459,6e-07,87366.0,87365.0,0.48259857]
[1742858305798,0.0010006,87366.0,87365.0,0.48259857]
[1742858311327,0.0010006,87366.0,87365.0,0.74454372]
[1742858311528,0.0010006,87366.0,87365.0,0.80364372]
[1742858312239,6e-07,87366.0,87365.0,0.80364372]
[1742858313326,6e-07,87366.0,87365.0,0.81241196]
[1742858315828,6e-07,87366.0,87365.0,0.83525768]
[1742858319136,6e-07,87366.0,87365.0,0.77615768]
[1742858319522,6e-07,87366.0,87365.0,1.32067768]
[1742858320956,6e-07,87366.0,87365.0,1.28902372]
[1742858323736,6e-07,87366.0,87365.0,1.16130372]
[1742858323955,6e-07,87366.0,87365.0,1.28902372]
[1742858325838,6e-07,87366.0,87365.0,1.16130372]
[1742858326035,0.0817006,87366.0,87365.0,1.27757772]
[1742858326178,0.0817006,87366.0,87365.0,1.04865372]
[1742858326383,0.0817006,87366.0,87365.0,1.27757772]
[1742858326838,0.0817006,87366.0,87365.0,1.28902372]
[1742858327942,6e-07,87366.0,87365.0,1.28902372]
[1742858334437,6e-07,87366.0,87365.0,1.16130372]
[1742858334646,6e-07,87366.0,87365.0,1.28902372]
[1742858341323,6e-07,87366.0,87365.0,1.16130372]
[1742858341500,6e-07,87366.0,87365.0,1.28902372]
[1742858349150,6e-07,87366.0,87365.0,1.59402372]
[1742858349282,6e-07,87366.0,87365.0,1.62978318]
[1742858351630,6e-07,87366.0,87365.0,1.63178318]
[1742858352278,6e-07,87366.0,87365.0,1.62978318]
[1742858352451,6e-07,87366.0,87365.0,1.49906318]
[1742858352653,6e-07,87366.0,87365.0,1.63074318]
[1742858352996,6e-07,87366.0,87365.0,1.59498372]
[1742858354192,6e-07,87366.0,87365.0,1.29498372]
[1742858354599,6e-07,87366.0,87365.0,1.16730372]
[1742858354802,6e-07,87366.0,87365.0,1.29498372]
[1742858355741,6e-07,87366.0,87365.0,1.28898372]
[1742858355883,6e-07,87366.0,87365.0,1.29098372]
[1742858356086,6e-07,87366.0,87365.0,1.29298372]
[1742858356542,6e-07,87366.0,87365.0,1.31353533]
[1742858356703,6e-07,87366.0,87365.0,1.29298372]
[1742858359739,6e-07,87366.0,87365.0,1.16530372]
[1742858359921,6e-07,87366.0,87365.0,1.29298372]
[1742858360935,6e-07,87366.0,87365.0,1.16330372]
[1742858361134,0.0784006,87366.0,87365.0,1.29298372]
[1742858361436,0.0784006,87366.0,87365.0,1.29098372]
[1742858361840,0.0784006,87366.0,87365.0,1.29298372]
[1742858363328,0.0784006,87366.0,87365.0,0.79066857]
[1742858363691,0.1280006,87366.0,87365.0,0.79066857]
[1742858363867,0.3569226,87366.0,87365.0,0.79066857]
[1742858364271,0.1280006,87366.0,87365.0,0.79066857]
[1742858364473,0.1280006,87366.0,87365.0,1.01959257]
[1742858364791,0.1180006,87366.0,87365.0,1.01959257]
[1742858366981,0.1180006,87366.0,87365.0,0.79066857]
[1742858368460,0.3583686,87366.0,87365.0,0.79066857]
[1742858371836,0.3583686,87366.0,87365.0,0.66298857]
[1742858372043,0.3583686,87366.0,87365.0,0.54873093]
[1742858372245,0.3583686,87366.0,87365.0,0.00421093]
[1742858372702,0.3583686,87366.0,87365.0,0.00221093]
[1742858373560,0.46631306,87366.0,87365.0,0.00221093]
[1742858374071,0.46631306,87366.0,87365.0,0.00021093]
[1742858374271,0.3583686,87366.0,87365.0,0.00021093]
[1742858374472,0.3587078,87366.0,87365.0,0.00021093]
[1742858375016,0.3647078,87366.0,87365.0,0.00021093]
[1742858375314,0.3617078,87366.0,87365.0,0.00021093]
[1742858375689,0.3657078,87366.0,87365.0,0.00021093]
[1742858382630,0.0569392,87366.0,87365.0,0.47111257]
[1742858382807,0.0569392,87366.0,87365.0,0.48255857]
[1742858382981,0.0073392,87366.0,87365.0,0.48255857]
[1742858383412,0.0073392,87366.0,87365.0,0.47111257]
[1742858383820,0.0043392,87366.0,87365.0,0.47111257]
[1742858384202,0.0053392,87366.0,87365.0,0.47111257]
[1742858384396,0.0013392,87366.0,87365.0,0.47111257]
[1742858384742,0.0013392,87366.0,87365.0,0.48255857]
[1742858385310,0.0003392,87366.0,87365.0,0.48255857]
[1742858385507,0.0003392,87366.0,87365.0,0.48455857]
[1742858387688,0.0003392,87366.0,87365.0,0.74650372]
[1742858390982,0.0003392,87366.0,87365.0,1.04650372]
[1742858392489,0.0003392,87366.0,87365.0,1.05150372]
[1742858394361,0.1277,87392.0,87391.0,0.240298]
[1742858394565,0.1277,87392.0,87391.0,0.48223564]
[1742858394765,0.1277,87392.0,87391.0,0.47079364]
[1742858395289,0.1277,87392.0,87391.0,0.48223564]
[1742858395859,0.1307,87392.0,87391.0,0.48223564]
[1742858396089,0.1347,87392.0,87391.0,0.48223564]
[1742858398325,0.1350392,87392.0,87391.0,0.48223564]
[1742858400608,0.3638922,87392.0,87391.0,0.11425764]
[1742858400825,0.3753342,87392.0,87391.0,0.24189764]
[1742858401372,0.240301,87390.0,87389.0,0.26160595]
[1742858401559,0.319501,87390.0,87389.0,0.38924595]
[1742858402992,0.371001,87390.0,87389.0,0.38924595]
[1742858403889,0.375001,87390.0,87389.0,0.38924595]
[1742858404652,0.1347,87390.0,87389.0,0.38924595]
[1742858404981,0.363559,87390.0,87389.0,0.38924595]
[1742858405293,0.1347,87390.0,87389.0,0.12764]
[1742858405464,0.1347,87390.0,87389.0,0.356501]
[1742858405847,0.1347,87390.0,87389.0,0.47075864]
[1742858406058,0.1347,87390.0,87389.0,0.48220164]
[1742858406260,0.007,87390.0,87389.0,0.49363758]
[1742858407088,0.007,87390.0,87389.0,0.48220164]
[1742858407288,0.003,87390.0,87389.0,0.48220164]
[1742858408487,0.0003392,87392.0,87391.0,0.240298]
[1742858408690,0.0003392,87392.0,87391.0,0.35455564]
[1742858409895,0.0003392,87392.0,87391.0,0.34311364]
[1742858410098,0.0003392,87392.0,87391.0,0.35455564]
[1742858410314,0.0791392,87392.0,87391.0,0.34311364]
[1742858410489,0.0791392,87392.0,87391.0,0.11425764]
[1742858410691,0.3204342,87392.0,87391.0,0.12764]
[1742858411446,0.011443,87387.0,87386.0,0.80612595]
[1742858411632,0.319109,87387.0,87386.0,0.67216]
[1742858411788,0.307666,87387.0,87386.0,0.67216]
[1742858412799,0.319109,87387.0,87386.0,0.67216]
[1742858413081,0.320109,87387.0,87386.0,0.67216]
[1742858413417,0.308666,87387.0,87386.0,0.67216]
[1742858413646,0.308666,87387.0,87386.0,0.67316]
[1742858414255,0.308666,87387.0,87386.0,0.67216]
[1742858414676,0.309666,87387.0,87386.0,0.67216]
[1742858414880,0.321109,87387.0,87386.0,0.67216]
[1742858415080,0.321109,87387.0,87386.0,0.54452]
[1742858415287,0.321109,87387.0,87386.0,0.67216]
[1742858416568,0.43130852,87387.0,87386.0,0.54452]
[1742858416775,0.369309,87387.0,87386.0,0.54452]
[1742858417624,0.127,87373.0,87366.0,0.0001696]
[1742858417845,0.228914,87369.0,87367.0,0.24189764]
[1742858417994,0.228911,87370.0,87367.0,0.24189764]
[1742858418603,0.355906,87373.0,87367.0,0.47081364]
[1742858418809,0.355906,87373.0,87368.0,0.228915]
[1742858418994,0.001,87369.0,87368.0,0.228915]
[1742858419383,0.129,87373.0,87369.0,0.228914]
[1742858419589,0.129,87373.0,87372.0,0.228906]
[1742858420401,0.127,87373.0,87372.0,0.228906]
[1742858420887,0.129,87373.0,87372.0,0.228906]
[1742858421706,0.127,87373.0,87372.0,0.228906]
[1742858421915,0.127,87373.0,87372.0,0.356546]
[1742858422147,0.131,87373.0,87372.0,0.356546]
[1742858422346,0.0522,87373.0,87372.0,0.47080364]
[1742858425537,0.004,87373.0,87372.0,0.48224864]
[1742858427183,0.002,87373.0,87372.0,0.48224864]
[1742858427830,0.126,87383.0,87382.0,0.22888]
[1742858428010,0.126,87383.0,87382.0,0.34313764]
[1742858429510,0.0003392,87387.0,87386.0,0.228869]
[1742858429708,0.0003392,87387.0,87386.0,0.35456964]
[1742858431164,0.0003392,87387.0,87386.0,0.35556964]
[1742858431565,0.0033392,87387.0,87386.0,0.35456964]
[1742858431767,0.0003392,87387.0,87386.0,0.35456964]
[1742858432014,0.0003392,87387.0,87386.0,0.35556964]
[1742858432213,0.0003392,87387.0,87386.0,0.35656964]
[1742858434000,0.0003392,87387.0,87386.0,0.48420964]
[1742858436737,0.0003392,87387.0,87386.0,0.11625764]
[1742858436886,0.0003392,87387.0,87386.0,0.24389764]
[1742858436887,0.0468392,87387.0,87386.0,0.24389764]
[1742858437086,0.0468392,87387.0,87386.0,0.47276664]
[1742858440224,0.0003392,87387.0,87386.0,0.48420964]
[1742858446184,0.0003392,87387.0,87386.0,0.74581559]
[1742858446910,0.0003392,87387.0,87386.0,0.76928726]
[1742858447277,0.0003392,87387.0,87386.0,1.06928726]
[1742858448468,0.0003392,87387.0,87386.0,0.76928726]
[1742858448597,0.0003392,87387.0,87386.0,0.73437259]
[1742858448779,0.0003392,87387.0,87386.0,0.74581559]
[1742858449909,0.0003392,87387.0,87386.0,0.73437259]
[1742858450108,0.0003392,87387.0,87386.0,0.50550359]
[1742858450109,0.2292052,87387.0,87386.0,0.50550359]
[1742858450309,0.0003392,87387.0,87386.0,0.73437259]
[1742858452932,0.0003392,87387.0,87386.0,0.50550359]
[1742858453383,0.0003392,87387.0,87386.0,0.73437259]
[1742858454184,0.0003392,87387.0,87386.0,0.50550359]
[1742858454651,0.0003392,87387.0,87386.0,0.73437259]
[1742858455211,0.0003392,87387.0,87386.0,0.50550359]
[1742858456928,0.2292052,87387.0,87386.0,0.50550359]
[1742858457802,0.3181482,87387.0,87386.0,0.12964]
[1742858458168,0.3181482,87387.0,87386.0,0.002]
[1742858458169,0.33416864,87387.0,87386.0,0.002]
[1742858458284,0.3181482,87387.0,87386.0,0.002]
[1742858458481,0.3181482,87387.0,87386.0,0.001]
[1742858458940,0.228872,87385.0,87384.0,0.12764]
[1742858459380,0.240315,87385.0,87384.0,0.12764]
[1742858460361,0.317824,87382.0,87381.0,0.54448]
[1742858460566,0.317824,87382.0,87381.0,0.67212]
[1742858460839,0.1254,87373.0,87366.0,0.0001696]
[1742858461043,0.365764,87367.0,87366.0,0.0001696]
[1742858463404,0.366764,87367.0,87366.0,0.0001696]
[1742858463643,0.367764,87367.0,87366.0,0.0001696]
[1742858463896,0.366764,87367.0,87366.0,0.0001696]
[1742858464082,0.39113094,87367.0,87366.0,0.0001696]
[1742858464449,0.39413094,87367.0,87366.0,0.0001696]
[1742858475972,0.39413094,87367.0,87357.0,0.0001696]
[1742858475973,0.55491585,87363.0,87362.0,7.3e-07]
[1742858476193,0.672409,87351.0,87350.0,0.0008553]
[1742858477568,0.37686455,87351.0,87350.0,0.0008553]
[1742858477984,0.38086455,87351.0,87350.0,0.0008553]
[1742858478200,0.29796455,87351.0,87350.0,0.0008553]
[1742858479181,0.4081708,87351.0,87350.0,0.0008553]
[1742858479717,0.4111708,87351.0,87350.0,0.0008553]
[1742858484925,0.4930708,87351.0,87350.0,0.0008553]
[1742858485284,0.50460561,87351.0,87350.0,0.0008553]
[1742858486521,0.50015006,87351.0,87350.0,0.0008553]
[1742858487126,0.81469091,87351.0,87350.0,0.0008553]
[1742858487330,0.92894855,87351.0,87350.0,0.0008553]
[1742858488201,0.92894855,87351.0,87350.0,3e-07]
[1742858488403,0.92594855,87351.0,87350.0,3e-07]
[1742858488606,0.92194855,87351.0,87350.0,3e-07]
[1742858488923,0.92694855,87351.0,87350.0,3e-07]
[1742858489357,0.93194855,87351.0,87350.0,3e-07]
[1742858489560,0.92694855,87351.0,87350.0,3e-07]
[1742858489769,0.93194855,87351.0,87350.0,3e-07]
[1742858490925,0.671777,87326.0,87313.0,0.0001697]
[1742858492174,0.67385256,87326.0,87313.0,0.0001697]
[1742858492552,0.67585256,87326.0,87313.0,0.0001697]
[1742858492759,0.67185256,87326.0,87313.0,0.0001697]
[1742858493178,0.67685256,87326.0,87313.0,0.0001697]
[1742858493388,0.7891102,87326.0,87313.0,0.0001697]
[1742858494039,0.7861102,87326.0,87313.0,0.0001697]
[1742858495067,0.7891102,87326.0,87313.0,0.0001697]
[1742858495624,0.7931102,87326.0,87313.0,0.0001697]
[1742858508850,0.240502,87317.0,87316.0,1e-06]
[1742858509058,0.666702,87317.0,87316.0,1e-06]
[1742858509410,0.68124285,87317.0,87316.0,1e-06]
[1742858511637,0.68624285,87317.0,87316.0,1e-06]
[1742858511911,1.09144285,87317.0,87316.0,1e-06]
[1742858512089,1.27420035,87317.0,87316.0,1e-06]
[1742858512305,1.11595366,87317.0,87316.0,1e-06]
[1742858512505,1.03992366,87317.0,87316.0,1e-06]
[1742858512736,0.96492366,87317.0,87316.0,1e-06]
[1742858513517,0.95413966,87317.0,87316.0,1e-06]
[1742858513720,0.91900949,87317.0,87316.0,1e-06]
[1742858514289,0.80550049,87317.0,87316.0,1e-06]
[1742858514492,0.676702,87317.0,87316.0,1e-06]
[1742858515516,0.671702,87317.0,87316.0,0.0001706]
[1742858515718,0.676702,87317.0,87316.0,0.0001706]
[1742858515991,0.671702,87317.0,87316.0,0.0001706]
[1742858516805,0.676702,87317.0,87316.0,0.0001706]
[1742858516960,0.79095964,87317.0,87316.0,0.0001706]
[1742858517314,0.78095964,87317.0,87316.0,0.0001706]
[1742858517443,0.79095964,87317.0,87316.0,0.0001706]
[1742858518670,0.676702,87317.0,87316.0,0.0001706]
[1742858521635,0.596402,87317.0,87316.0,0.0001706]
[1742858522045,0.296402,87317.0,87316.0,0.0001706]
[1742858524737,0.229074,87308.0,87303.0,0.2064223]
[1742858524959,0.229074,87308.0,87304.0,0.11425764]
[1742858525363,0.01,87317.0,87304.0,0.12571164]
[1742858525479,0.005,87317.0,87316.0,0.229053]
[1742858525681,0.005,87317.0,87316.0,0.34331064]
[1742858525937,0.240488,87324.0,87318.0,0.229047]
[1742858526139,0.229034,87323.0,87317.0,0.229048]
[1742858526339,0.229034,87323.0,87317.0,0.34330564]
[1742858526494,0.229037,87322.0,87317.0,0.11425764]
[1742858526696,0.22904,87321.0,87317.0,0.11425764]
[1742858526929,0.229037,87322.0,87317.0,0.11425764]
[1742858527334,0.011451,87323.0,87317.0,0.11425764]
[1742858527543,0.014451,87323.0,87317.0,0.11425764]
[1742858528441,0.229039,87322.0,87317.0,0.11425764]
[1742858528645,0.236034,87323.0,87318.0,0.229045]
[1742858528872,0.233035,87323.0,87318.0,0.229045]
[1742858529070,0.004,87323.0,87319.0,0.34330164]
[1742858529300,0.003,87322.0,87319.0,0.11425764]
[1742858529457,0.003,87322.0,87319.0,0.34330064]
[1742858529827,0.003,87322.0,87321.0,0.229039]
[1742858529994,0.003,87322.0,87321.0,0.34329664]
[1742858530205,0.22910456,87326.0,87321.0,0.34329664]
[1742858530409,0.22910456,87326.0,87322.0,0.11425764]
[1742858532043,0.23310456,87326.0,87322.0,0.34329464]
[1742858532188,0.00407556,87326.0,87322.0,0.34329464]
[1742858532592,7.556e-05,87326.0,87322.0,0.34329464]
[1742858533134,0.00307556,87326.0,87322.0,0.34329464]
[1742858533429,0.23210256,87326.0,87322.0,0.34329464]
[1742858533633,0.23210256,87326.0,87322.0,0.11425764]
[1742858533838,0.00707556,87326.0,87322.0,0.34329364]
[1742858535049,0.00707556,87326.0,87325.0,0.229029]
[1742858535790,0.00407556,87326.0,87325.0,0.229029]
[1742858535993,0.00407556,87326.0,87324.0,0.229032]
[1742858536195,0.00407556,87326.0,87324.0,0.34328964]
[1742858536401,0.00407556,87326.0,87325.0,0.229029]
[1742858536802,0.00407556,87326.0,87317.0,0.22905]
[1742858537008,0.00307556,87326.0,87325.0,0.12772]
[1742858537218,0.00307556,87326.0,87316.0,0.0001697]
[1742858537219,0.240502,87317.0,87316.0,0.0001697]
[1742858538973,0.242502,87317.0,87316.0,0.0001697]
[1742858540104,0.243502,87317.0,87316.0,0.0001697]
[1742858541288,0.243502,87317.0,87306.0,0.229078]
[1742858541289,0.229063,87312.0,87307.0,0.2144134]
[1742858541492,0.3003701,87312.0,87307.0,0.2144134]
[1742858542036,0.229067,87311.0,87307.0,0.2144134]
[1742858542242,0.229067,87311.0,87307.0,0.229076]
[1742858542384,0.3003701,87312.0,87307.0,0.229076]
[1742858542588,0.229066,87311.0,87308.0,0.12772]
[1742858543009,0.07928521,87310.0,87308.0,0.12772]
[1742858544497,0.30835521,87310.0,87308.0,0.12772]
[1742858545170,0.229071,87309.0,87308.0,0.12772]
[1742858545313,0.306871,87309.0,87308.0,0.12772]
[1742858546483,0.306871,87309.0,87304.0,0.229082]
[1742858546656,0.306871,87309.0,87308.0,0.12772]
[1742858546873,0.306871,87309.0,87308.0,0.12872]
[1742858547487,0.306871,87309.0,87308.0,0.12772]
[1742858549801,0.318324,87309.0,87308.0,0.12772]
[1742858550839,0.31693468,87309.0,87308.0,0.12772]
[1742858551283,0.229079,87306.0,87300.0,0.00091309]
[1742858551413,0.229089,87303.0,87301.0,0.12772]
[1742858552170,0.229086,87304.0,87301.0,0.12772]
[1742858552375,0.229081,87305.0,87301.0,0.356812]
[1742858552601,0.229086,87304.0,87301.0,0.12772]
[1742858553081,0.229086,87304.0,87301.0,0.12872]
[1742858553288,0.229087,87303.0,87301.0,0.12872]
[1742858553489,0.229081,87305.0,87301.0,0.12772]
[1742858553916,0.229087,87303.0,87301.0,0.12772]
[1742858554116,0.229088,87303.0,87301.0,0.12772]
[1742858554244,0.229091,87302.0,87300.0,0.00091309]
[1742858554445,0.229091,87302.0,87301.0,0.12772]
[1742858554644,0.240545,87302.0,87301.0,0.12772]
[1742858555800,0.229092,87301.0,87300.0,0.00091309]
[1742858555975,0.229092,87301.0,87300.0,0.12863309]
[1742858557850,0.240546,87301.0,87300.0,0.12863309]
[1742858558055,0.240546,87301.0,87300.0,0.12963309]
[1742858558395,0.240546,87301.0,87300.0,0.13063309]
[1742858559123,0.240546,87301.0,87300.0,0.12967309]
[1742858559739,0.240546,87301.0,87300.0,0.00191309]
[1742858559980,0.33936132,87301.0,87300.0,0.00091309]
[1742858564109,0.240546,87301.0,87300.0,0.00091309]
[1742858564847,0.240546,87301.0,87300.0,0.00108269]
[1742858567644,0.322546,87301.0,87300.0,0.00108269]
[1742858579622,0.229108,87295.0,87293.0,0.03856269]
[1742858579826,0.22911,87294.0,87293.0,0.03856269]
[1742858580224,0.229108,87295.0,87293.0,0.03856269]
[1742858580879,0.22923169,87295.0,87294.0,0.12776]
[1742858581282,0.22911,87294.0,87293.0,0.03956269]
[1742858581506,0.24284532,87294.0,87293.0,0.03956269]
[1742858581720,0.240565,87294.0,87293.0,0.03956269]
[1742858582339,0.240565,87294.0,87293.0,0.04056269]
[1742858582541,0.240565,87294.0,87293.0,0.03856269]
[1742858582937,0.35343677,87294.0,87293.0,0.03856269]
[1742858583965,0.243565,87294.0,87293.0,0.03856269]
[1742858584163,0.247565,87294.0,87293.0,0.03856269]
[1742858589381,0.247565,87294.0,87293.0,0.03873239]
[1742858598908,0.329965,87294.0,87293.0,0.03873239]
[1742858599113,0.677365,87294.0,87293.0,0.03873239]
[1742858599286,0.79162264,87294.0,87293.0,0.03873239]
[1742858599916,0.78762264,87294.0,87293.0,0.03873239]
[1742858600047,0.78462264,87294.0,87293.0,0.03873239]
[1742858600250,0.90743326,87294.0,87293.0,0.03873239]
[1742858600477,0.91243326,87294.0,87293.0,0.03873239]
[1742858600680,0.78962264,87294.0,87293.0,0.03873239]
[1742858601293,0.675365,87294.0,87293.0,0.03873239]
[1742858601520,0.680365,87294.0,87293.0,0.03873239]
[1742858601894,0.675365,87294.0,87293.0,0.03873239]
[1742858602313,0.680365,87294.0,87293.0,0.03873239]
[1742858602518,0.82905164,87294.0,87293.0,0.03873239]
[1742858606551,0.84698524,87294.0,87293.0,0.03873239]
[1742858607141,1.07644288,87294.0,87293.0,0.03873239]
[1742858608096,1.07644288,87294.0,87293.0,3.9e-07]
[1742858608450,0.96124288,87294.0,87293.0,3.9e-07]
[1742858609255,0.540607,87279.0,87278.0,6e-07]
[1742858609508,0.77656464,87279.0,87278.0,6e-07]
[1742858609905,0.79909369,87279.0,87278.0,6e-07]
[1742858610455,0.68483605,87279.0,87278.0,6e-07]
[1742858610814,0.68983605,87279.0,87278.0,6e-07]
[1742858611039,0.80409369,87279.0,87278.0,6e-07]
[1742858611182,0.79950269,87279.0,87278.0,6e-07]
[1742858611361,0.82215163,87279.0,87278.0,6e-07]
[1742858611566,0.82194701,87279.0,87278.0,6e-07]
[1742858611823,0.70768937,87279.0,87278.0,6e-07]
[1742858612026,0.71268937,87279.0,87278.0,6e-07]
[1742858613262,0.615831,87270.0,87250.0,0.00707941]
[1742858613469,0.540651,87263.0,87262.0,3.4e-07]
[1742858613604,0.35490864,87263.0,87262.0,3.4e-07]
[1742858614206,1.19850864,87263.0,87262.0,3.4e-07]
[1742858614410,0.54075,87227.0,87226.0,0.08303873]
[1742858614595,0.011467,87201.0,87200.0,6.9e-07]
[1742858614820,0.540822,87201.0,87200.0,6.9e-07]
[1742858615040,0.56866892,87201.0,87200.0,6.9e-07]
[1742858615242,0.545418,87201.0,87200.0,6.9e-07]
[1742858615492,0.540822,87201.0,87200.0,6.9e-07]
[1742858615692,0.229355,87201.0,87200.0,6.9e-07]
[1742858615911,0.00012346,87201.0,87200.0,0.24317833]
[1742858616251,0.01159046,87201.0,87200.0,0.24317833]
[1742858616645,0.01359046,87201.0,87200.0,0.24317833]
[1742858617217,0.01159046,87201.0,87200.0,0.24317833]
[1742858617427,0.01359046,87201.0,87200.0,0.24317833]
[1742858618394,0.01159046,87201.0,87200.0,0.24317833]
[1742858618624,0.01359046,87201.0,87200.0,0.24317833]
[1742858618823,0.01559046,87201.0,87200.0,0.24317833]
[1742858619017,0.01359046,87201.0,87200.0,0.24317833]
[1742858619217,0.01159046,87201.0,87200.0,0.24317833]
[1742858619422,0.01359046,87201.0,87200.0,0.24317833]
[1742858620423,0.01559046,87201.0,87200.0,0.24317833]
[1742858621533,0.24494546,87201.0,87200.0,0.24317833]
[1742858622120,0.24094546,87201.0,87200.0,0.24317833]
[1742858622543,0.24294546,87201.0,87200.0,0.24317833]
[1742858623783,0.00412346,87201.0,87200.0,0.24317833]
[1742858623920,0.01559046,87201.0,87200.0,0.24317833]
[1742858624122,0.00412346,87201.0,87200.0,0.24317833]
[1742858624812,0.00412346,87201.0,87200.0,0.25464533]
[1742858625418,0.00412346,87201.0,87200.0,0.48400233]
[1742858625664,0.00412346,87201.0,87200.0,0.48417203]
[1742858626642,0.00412346,87201.0,87200.0,0.11442803]
[1742858626841,0.24494546,87201.0,87200.0,0.12897039]
[1742858627808,0.00412346,87201.0,87200.0,0.12897039]
[1742858628004,0.00412346,87201.0,87200.0,0.25469503]
[1742858632980,0.00412346,87201.0,87200.0,0.12589503]
[1742858633264,0.00412346,87201.0,87200.0,0.48393203]
[1742858633856,0.00412346,87201.0,87200.0,0.47242503]
[1742858634064,0.00412346,87201.0,87200.0,0.48389203]
[1742858634466,0.00412346,87201.0,87200.0,0.45889203]
[1742858637540,0.00412346,87201.0,87200.0,0.45906183]
[1742858638480,0.00446306,87201.0,87200.0,0.45906183]
[1742858639746,0.00446306,87201.0,87200.0,0.33042183]
[1742858640057,0.24528506,87201.0,87200.0,0.1288098]